[Event "Early-Titled-Tuesday-Blitz-October-17-2023"]
[Site "Chess.com"]
[Date "2023.10.17"]
[Round "11"]
[White "Nekoo04"]
[Black "tarno17"]
[Result "1-0"]
[WhiteElo "2239"]
[BlackElo "2110"]
[TimeControl "180+1"]
[EndTime "10:09:57 PDT"]
[Termination "Nekoo04 won on time"]

1. d4 {[%clk 0:02:57.1]} 1... d5 {[%clk 0:02:59.6]} 2. c4 {[%clk 0:02:57.3]}
2... e6 {[%clk 0:02:57.8]} 3. Nf3 {[%clk 0:02:57.8]} 3... Nf6 {[%clk 0:02:57.8]}
4. g3 {[%clk 0:02:52.5]} 4... Be7 {[%clk 0:02:57.5]} 5. Bg2 {[%clk 0:02:52.8]}
5... O-O {[%clk 0:02:58.3]} 6. O-O {[%clk 0:02:53.2]} 6... b6 {[%clk 0:02:59]}
7. cxd5 {[%clk 0:02:52.7]} 7... exd5 {[%clk 0:02:59.1]} 8. Nc3 {[%clk
0:02:53.1]} 8... Bb7 {[%clk 0:02:59.8]} 9. Ne5 {[%clk 0:02:52.5]} 9... Nbd7
{[%clk 0:02:57.4]} 10. Qa4 {[%clk 0:02:51.4]} 10... a6 {[%clk 0:02:37.8]} 11.
Nxd7 {[%clk 0:02:42.2]} 11... Nxd7 {[%clk 0:02:31.6]} 12. Nxd5 {[%clk
0:02:38.2]} 12... b5 {[%clk 0:02:15.6]} 13. Qc2 {[%clk 0:02:27]} 13... Bd6
{[%clk 0:01:54.5]} 14. Ne7+ {[%clk 0:01:55.4]} 14... Qxe7 {[%clk 0:01:50.2]} 15.
Bxb7 {[%clk 0:01:56.3]} 15... Ra7 {[%clk 0:01:47.6]} 16. Bg2 {[%clk 0:01:42.5]}
16... c5 {[%clk 0:01:47]} 17. Be3 {[%clk 0:01:36.5]} 17... c4 {[%clk 0:01:47.3]}
18. a4 {[%clk 0:01:18.9]} 18... Rc7 {[%clk 0:01:40.5]} 19. axb5 {[%clk
0:01:14.1]} 19... axb5 {[%clk 0:01:41.4]} 20. Ra6 {[%clk 0:01:13.1]} 20... Bb4
{[%clk 0:01:23.5]} 21. Bf4 {[%clk 0:00:59.4]} 21... Rcc8 {[%clk 0:01:03.4]} 22.
Ra7 {[%clk 0:00:57.2]} 22... c3 {[%clk 0:00:50.6]} 23. Bh3 {[%clk 0:00:44.5]}
23... cxb2 {[%clk 0:00:47.8]} 24. Qxb2 {[%clk 0:00:41.3]} 24... Bc3 {[%clk
0:00:36.3]} 25. Qxb5 {[%clk 0:00:28.8]} 25... Qe4 {[%clk 0:00:22.4]} 26. Qxd7
{[%clk 0:00:18.7]} 26... Qxe2 {[%clk 0:00:17.8]} 27. Qxc8 {[%clk 0:00:16.7]}
27... Rxc8 {[%clk 0:00:17.2]} 28. Bxc8 {[%clk 0:00:17.6]} 28... g6 {[%clk
0:00:12.4]} 29. Be5 {[%clk 0:00:15.6]} 29... f6 {[%clk 0:00:04.1]} 30. Be6+
{[%clk 0:00:15.4]} 30... Kf8 {[%clk 0:00:02.4]} 31. Bd6+ {[%clk 0:00:15.7]}
31... Ke8 {[%clk 0:00:02.5]} 32. Re7+ {[%clk 0:00:15.1]} 32... Kd8 {[%clk
0:00:02.7]} 33. Rd7+ {[%clk 0:00:14.9]} 33... Kc8 {[%clk 0:00:02.8]} 34. Rc7+
{[%clk 0:00:14.9]} 34... Kd8 {[%clk 0:00:03.3]} 35. Bc4 {[%clk 0:00:12.2]} 35...
Qe4 {[%clk 0:00:02.3]} 36. Rxh7 {[%clk 0:00:08.5]} 36... Bxd4 {[%clk 0:00:02.3]}
37. Be7+ {[%clk 0:00:06.6]} 37... Ke8 {[%clk 0:00:02]} 38. Ba3 {[%clk
0:00:05.4]} 38... Kd8 {[%clk 0:00:02.2]} 39. Be7+ {[%clk 0:00:05.1]} 39... Ke8
{[%clk 0:00:02.5]} 40. Bb5+ {[%clk 0:00:05.4]} 1-0

[Event "Early-Titled-Tuesday-Blitz-October-17-2023"]
[Site "Chess.com"]
[Date "2023.10.17"]
[Round "11"]
[White "Me_ch_an"]
[Black "topin8"]
[Result "0-1"]
[WhiteElo "2375"]
[BlackElo "2501"]
[TimeControl "180+1"]
[EndTime "10:10:10 PDT"]
[Termination "topin8 won by checkmate"]

1. e4 {[%clk 0:02:56.5]} 1... e5 {[%clk 0:03:00.1]} 2. Nf3 {[%clk 0:02:56.3]}
2... Nc6 {[%clk 0:03:00.7]} 3. Bb5 {[%clk 0:02:56.5]} 3... Nf6 {[%clk 0:03:01]}
4. Qe2 {[%clk 0:02:56.8]} 4... d6 {[%clk 0:03:00.5]} 5. c3 {[%clk 0:02:56.9]}
5... Be7 {[%clk 0:03:00.5]} 6. O-O {[%clk 0:02:56.6]} 6... O-O {[%clk
0:03:00.3]} 7. Rd1 {[%clk 0:02:57.2]} 7... a6 {[%clk 0:02:57]} 8. Ba4 {[%clk
0:02:57.1]} 8... b5 {[%clk 0:02:57.4]} 9. Bb3 {[%clk 0:02:57.4]} 9... Be6 {[%clk
0:02:57.8]} 10. Bc2 {[%clk 0:02:57.3]} 10... d5 {[%clk 0:02:52.1]} 11. d3 {[%clk
0:02:55.3]} 11... d4 {[%clk 0:02:43.7]} 12. Nbd2 {[%clk 0:02:54.9]} 12... g6
{[%clk 0:01:02.2]} 13. Nf1 {[%clk 0:02:53.3]} 13... Nh5 {[%clk 0:01:02.6]} 14.
Ng3 {[%clk 0:02:48.7]} 14... Nf4 {[%clk 0:01:00.5]} 15. Bxf4 {[%clk 0:02:44.1]}
15... exf4 {[%clk 0:01:01.4]} 16. Nf1 {[%clk 0:02:44.2]} 16... Bg4 {[%clk
0:00:59.5]} 17. h3 {[%clk 0:02:43.9]} 17... Bh5 {[%clk 0:00:59.7]} 18. g4 {[%clk
0:02:39]} 18... fxg3 {[%clk 0:00:59.5]} 19. fxg3 {[%clk 0:02:38.5]} 19... Bxf3
{[%clk 0:00:43.7]} 20. Qxf3 {[%clk 0:02:37.9]} 20... dxc3 {[%clk 0:00:44.6]} 21.
bxc3 {[%clk 0:02:36.3]} 21... b4 {[%clk 0:00:45.5]} 22. d4 {[%clk 0:02:19.8]}
22... Na5 {[%clk 0:00:20.6]} 23. cxb4 {[%clk 0:02:11.2]} 23... Bxb4 {[%clk
0:00:20.9]} 24. Rab1 {[%clk 0:02:11.3]} 24... Rb8 {[%clk 0:00:20.4]} 25. Ne3
{[%clk 0:02:00.6]} 25... c6 {[%clk 0:00:18.9]} 26. Ng4 {[%clk 0:01:51.8]} 26...
Be7 {[%clk 0:00:19.2]} 27. Ne5 {[%clk 0:01:47]} 27... Rxb1 {[%clk 0:00:18.3]}
28. Bxb1 {[%clk 0:01:47]} 28... c5 {[%clk 0:00:12.4]} 29. d5 {[%clk 0:01:43]}
29... Qd6 {[%clk 0:00:11.6]} 30. Ng4 {[%clk 0:01:34.5]} 30... f6 {[%clk
0:00:06]} 31. Kg2 {[%clk 0:01:28.7]} 31... Nc4 {[%clk 0:00:04.6]} 32. Bd3 {[%clk
0:01:22.2]} 32... Ne5 {[%clk 0:00:02.4]} 33. Nxe5 {[%clk 0:01:06.8]} 33... Qxe5
{[%clk 0:00:03.3]} 34. Bxa6 {[%clk 0:00:58]} 34... Rb8 {[%clk 0:00:03.5]} 35.
Rd2 {[%clk 0:00:54.8]} 35... Bd6 {[%clk 0:00:03.7]} 36. Bc4 {[%clk 0:00:52.7]}
36... Rb1 {[%clk 0:00:03.9]} 37. h4 {[%clk 0:00:30.5]} 37... Qa1 {[%clk
0:00:03.4]} 38. Rf2 {[%clk 0:00:18.5]} 38... Rg1+ {[%clk 0:00:02.4]} 39. Kh3
{[%clk 0:00:18.2]} 39... Rxg3+ {[%clk 0:00:02.7]} 40. Qxg3 {[%clk 0:00:17.9]}
40... Bxg3 {[%clk 0:00:03.6]} 41. Kxg3 {[%clk 0:00:18.8]} 41... Qc3+ {[%clk
0:00:03.9]} 42. Kg2 {[%clk 0:00:16.7]} 42... Qxc4 {[%clk 0:00:04.1]} 43. Rxf6
{[%clk 0:00:13.6]} 43... Qxe4+ {[%clk 0:00:04]} 44. Kg1 {[%clk 0:00:12.4]} 44...
Qd4+ {[%clk 0:00:03.9]} 45. Kg2 {[%clk 0:00:12.9]} 45... Qxf6 {[%clk 0:00:04]}
46. d6 {[%clk 0:00:13.5]} 46... Qxd6 {[%clk 0:00:04.3]} 47. a4 {[%clk
0:00:14.4]} 47... c4 {[%clk 0:00:04.9]} 48. a5 {[%clk 0:00:15.3]} 48... c3
{[%clk 0:00:05.5]} 49. Kf2 {[%clk 0:00:16]} 49... c2 {[%clk 0:00:06]} 50. Ke2
{[%clk 0:00:16.9]} 50... c1=Q {[%clk 0:00:06.8]} 51. a6 {[%clk 0:00:17.8]} 51...
Qcd2+ {[%clk 0:00:06.6]} 52. Kf3 {[%clk 0:00:17.8]} 52... Q6f4# {[%clk
0:00:07.1]} 0-1

[Event "Early-Titled-Tuesday-Blitz-October-17-2023"]
[Site "Chess.com"]
[Date "2023.10.17"]
[Round "11"]
[White "ChainedDowntohell"]
[Black "GeorgiosSouleidis"]
[Result "1-0"]
[WhiteElo "2498"]
[BlackElo "2612"]
[TimeControl "180+1"]
[EndTime "10:10:14 PDT"]
[Termination "ChainedDowntohell won by checkmate"]

1. d4 {[%clk 0:03:00.9]} 1... Nf6 {[%clk 0:02:59.2]} 2. c4 {[%clk 0:02:59.6]}
2... g6 {[%clk 0:02:58]} 3. Nc3 {[%clk 0:02:58.6]} 3... Bg7 {[%clk 0:02:58.3]}
4. e4 {[%clk 0:02:59.2]} 4... d6 {[%clk 0:02:58.7]} 5. Bd3 {[%clk 0:02:59.3]}
5... O-O {[%clk 0:02:59]} 6. Nge2 {[%clk 0:02:59.3]} 6... c5 {[%clk 0:02:59]} 7.
d5 {[%clk 0:02:58.3]} 7... b5 {[%clk 0:02:58]} 8. cxb5 {[%clk 0:02:57.1]} 8...
a6 {[%clk 0:02:58.6]} 9. O-O {[%clk 0:02:53.7]} 9... Qa5 {[%clk 0:02:49]} 10. a4
{[%clk 0:02:50.1]} 10... axb5 {[%clk 0:02:45.2]} 11. Bxb5 {[%clk 0:02:48.7]}
11... Ba6 {[%clk 0:02:35]} 12. Ra3 {[%clk 0:02:47]} 12... Nbd7 {[%clk
0:02:14.8]} 13. Qc2 {[%clk 0:02:37.5]} 13... Ne5 {[%clk 0:02:08.8]} 14. Bg5
{[%clk 0:02:24.2]} 14... Nc4 {[%clk 0:02:08.1]} 15. Ra2 {[%clk 0:02:17.3]} 15...
Rfb8 {[%clk 0:01:53.7]} 16. b3 {[%clk 0:02:05.9]} 16... Ne5 {[%clk 0:01:53.6]}
17. Rd1 {[%clk 0:01:51.4]} 17... Qb4 {[%clk 0:01:40.9]} 18. f3 {[%clk
0:01:11.5]} 18... c4 {[%clk 0:01:25.8]} 19. bxc4 {[%clk 0:01:06.3]} 19... Nxc4
{[%clk 0:01:22]} 20. Bxa6 {[%clk 0:00:53]} 20... Rxa6 {[%clk 0:01:20]} 21. Kh1
{[%clk 0:00:46.1]} 21... Rc8 {[%clk 0:01:04.6]} 22. Rb1 {[%clk 0:00:33.3]} 22...
Qc5 {[%clk 0:01:03.9]} 23. Nb5 {[%clk 0:00:28.7]} 23... h6 {[%clk 0:00:48.9]}
24. Bh4 {[%clk 0:00:27.5]} 24... g5 {[%clk 0:00:48]} 25. Be1 {[%clk 0:00:25.8]}
25... Nd7 {[%clk 0:00:46.6]} 26. Ng3 {[%clk 0:00:22.3]} 26... Raa8 {[%clk
0:00:39.7]} 27. Bf2 {[%clk 0:00:20.5]} 27... Ne3 {[%clk 0:00:11.1]} 28. Qxc5
{[%clk 0:00:20]} 28... Nxc5 {[%clk 0:00:11.9]} 29. Bxe3 {[%clk 0:00:20.1]} 29...
Nxa4 {[%clk 0:00:12.6]} 30. Nf5 {[%clk 0:00:19]} 30... Bf6 {[%clk 0:00:11.1]}
31. h4 {[%clk 0:00:18.4]} 31... gxh4 {[%clk 0:00:10.8]} 32. Kh2 {[%clk
0:00:18.2]} 32... h5 {[%clk 0:00:10.3]} 33. Kh3 {[%clk 0:00:17.3]} 33... Ra5
{[%clk 0:00:08.1]} 34. Nbd4 {[%clk 0:00:15]} 34... Rca8 {[%clk 0:00:07.6]} 35.
Nc6 {[%clk 0:00:14.8]} 35... R5a6 {[%clk 0:00:07.8]} 36. Rb7 {[%clk 0:00:13.9]}
36... Nc5 {[%clk 0:00:06.1]} 37. Rxa6 {[%clk 0:00:13.1]} 37... Rxa6 {[%clk
0:00:06.5]} 38. Bxc5 {[%clk 0:00:11.7]} 38... dxc5 {[%clk 0:00:07.1]} 39. Ncxe7+
{[%clk 0:00:10.8]} 39... Kh7 {[%clk 0:00:07.7]} 40. d6 {[%clk 0:00:09.7]} 40...
Ra1 {[%clk 0:00:06.7]} 41. d7 {[%clk 0:00:08.9]} 41... Rd1 {[%clk 0:00:07]} 42.
Nd5 {[%clk 0:00:08.5]} 42... Bg5 {[%clk 0:00:06.1]} 43. g3 {[%clk 0:00:08.4]}
43... hxg3 {[%clk 0:00:05.7]} 44. Kxg3 {[%clk 0:00:08.5]} 44... Rg1+ {[%clk
0:00:05.4]} 45. Kf2 {[%clk 0:00:08.2]} 45... Ra1 {[%clk 0:00:04.5]} 46. Rb8
{[%clk 0:00:08.1]} 46... c4 {[%clk 0:00:04.7]} 47. d8=Q {[%clk 0:00:08.1]} 47...
Bxd8 {[%clk 0:00:05]} 48. Rxd8 {[%clk 0:00:08.9]} 48... Ra2+ {[%clk 0:00:04.3]}
49. Ke3 {[%clk 0:00:08.4]} 49... Ra3+ {[%clk 0:00:04.9]} 50. Kf4 {[%clk
0:00:08.5]} 50... c3 {[%clk 0:00:05.6]} 51. Kg5 {[%clk 0:00:07.6]} 51... c2
{[%clk 0:00:04.9]} 52. Nf6# {[%clk 0:00:07.3]} 1-0

[Event "Early-Titled-Tuesday-Blitz-October-17-2023"]
[Site "Chess.com"]
[Date "2023.10.17"]
[Round "11"]
[White "lefonghua"]
[Black "UK_23"]
[Result "1-0"]
[WhiteElo "2627"]
[BlackElo "2406"]
[TimeControl "180+1"]
[EndTime "10:10:20 PDT"]
[Termination "lefonghua won by resignation"]

1. d4 {[%clk 0:03:00.9]} 1... d5 {[%clk 0:03:00.3]} 2. c4 {[%clk 0:03:01.1]}
2... e6 {[%clk 0:03:00.9]} 3. Nc3 {[%clk 0:03:01.1]} 3... Nf6 {[%clk 0:03:01.5]}
4. cxd5 {[%clk 0:03:01.1]} 4... exd5 {[%clk 0:03:02.4]} 5. Bg5 {[%clk
0:03:01.4]} 5... Be7 {[%clk 0:03:03.1]} 6. e3 {[%clk 0:03:01.9]} 6... O-O {[%clk
0:03:03.7]} 7. Bd3 {[%clk 0:03:02.3]} 7... Re8 {[%clk 0:03:03.7]} 8. Qc2 {[%clk
0:02:54.8]} 8... h6 {[%clk 0:03:03.4]} 9. Bh4 {[%clk 0:02:55.1]} 9... c5 {[%clk
0:03:04]} 10. Nf3 {[%clk 0:02:49.9]} 10... Nc6 {[%clk 0:03:02.9]} 11. a3 {[%clk
0:02:48.4]} 11... c4 {[%clk 0:03:03.5]} 12. Bf5 {[%clk 0:02:47.2]} 12... Bxf5
{[%clk 0:02:44.8]} 13. Qxf5 {[%clk 0:02:48.1]} 13... Rc8 {[%clk 0:02:45.5]} 14.
O-O {[%clk 0:02:43.3]} 14... g6 {[%clk 0:02:35.3]} 15. Qc2 {[%clk 0:02:42.5]}
15... Kg7 {[%clk 0:02:33.1]} 16. Rad1 {[%clk 0:02:41.5]} 16... a6 {[%clk
0:02:32.5]} 17. Ne5 {[%clk 0:02:40.5]} 17... b5 {[%clk 0:02:30.7]} 18. f4 {[%clk
0:02:35]} 18... b4 {[%clk 0:02:09.5]} 19. axb4 {[%clk 0:02:31.3]} 19... Nxb4
{[%clk 0:02:07.9]} 20. Qa4 {[%clk 0:02:28]} 20... a5 {[%clk 0:02:06.7]} 21. Ra1
{[%clk 0:02:14.3]} 21... Ra8 {[%clk 0:02:02.5]} 22. Nc6 {[%clk 0:02:06.2]} 22...
Qd6 {[%clk 0:01:26.6]} 23. Ne5 {[%clk 0:01:55.1]} 23... Reb8 {[%clk 0:01:08]}
24. Rf2 {[%clk 0:01:43.2]} 24... Nd3 {[%clk 0:01:04.4]} 25. Nxd3 {[%clk
0:01:37.6]} 25... cxd3 {[%clk 0:01:05.3]} 26. Rd2 {[%clk 0:01:37.9]} 26... Ne4
{[%clk 0:01:00.6]} 27. Bxe7 {[%clk 0:01:36]} 27... Qxe7 {[%clk 0:00:58.8]} 28.
Rxd3 {[%clk 0:01:29.1]} 28... Rxb2 {[%clk 0:00:51.5]} 29. Qa3 {[%clk 0:01:08.6]}
29... Qxa3 {[%clk 0:00:39.6]} 30. Rxa3 {[%clk 0:01:09.5]} 30... Rc8 {[%clk
0:00:33.6]} 31. h3 {[%clk 0:00:52.6]} 31... Nxc3 {[%clk 0:00:29.2]} 32. Rdxc3
{[%clk 0:00:51.1]} 32... Rxc3 {[%clk 0:00:29.9]} 33. Rxc3 {[%clk 0:00:51.8]}
33... Ra2 {[%clk 0:00:25.9]} 34. Rc5 {[%clk 0:00:50.9]} 34... a4 {[%clk
0:00:26.4]} 35. Rxd5 {[%clk 0:00:50.7]} 35... a3 {[%clk 0:00:27.1]} 36. Ra5
{[%clk 0:00:49.9]} 36... Kf6 {[%clk 0:00:27.5]} 37. Kh2 {[%clk 0:00:46.1]} 37...
Ke6 {[%clk 0:00:26.9]} 38. Kg3 {[%clk 0:00:39.3]} 38... h5 {[%clk 0:00:25.8]}
39. h4 {[%clk 0:00:39.2]} 39... Ra1 {[%clk 0:00:25.8]} 40. e4 {[%clk 0:00:37.4]}
40... a2 {[%clk 0:00:24.6]} 41. d5+ {[%clk 0:00:36]} 41... Kd6 {[%clk
0:00:23.8]} 42. e5+ {[%clk 0:00:36.1]} 42... Kd7 {[%clk 0:00:23.3]} 43. Ra7+
{[%clk 0:00:35.6]} 43... Kd8 {[%clk 0:00:23]} 44. Kf2 {[%clk 0:00:33.5]} 44...
Ke8 {[%clk 0:00:22.2]} 45. Kg3 {[%clk 0:00:24.8]} 45... Kd8 {[%clk 0:00:22.3]}
46. Kh2 {[%clk 0:00:25.3]} 46... Ke8 {[%clk 0:00:22.4]} 47. g4 {[%clk
0:00:22.8]} 47... hxg4 {[%clk 0:00:21.1]} 48. d6 {[%clk 0:00:20.5]} 48... Rf1
{[%clk 0:00:17.3]} 49. Rxa2 {[%clk 0:00:19.8]} 49... Rxf4 {[%clk 0:00:17.6]} 50.
Ra8+ {[%clk 0:00:19.5]} 50... Kd7 {[%clk 0:00:17.8]} 51. Ra7+ {[%clk 0:00:20.1]}
51... Kd8 {[%clk 0:00:17.9]} 52. Kg3 {[%clk 0:00:18.5]} 52... Re4 {[%clk
0:00:17.8]} 53. Re7 {[%clk 0:00:19.1]} 53... Kc8 {[%clk 0:00:07.6]} 54. Kg2
{[%clk 0:00:18.7]} 54... Kd8 {[%clk 0:00:08.1]} 55. Kf2 {[%clk 0:00:19.3]} 55...
Kc8 {[%clk 0:00:08.5]} 56. Kg3 {[%clk 0:00:19.7]} 56... Kd8 {[%clk 0:00:09]} 57.
Rxf7 {[%clk 0:00:20]} 57... Rxe5 {[%clk 0:00:09.1]} 58. Rf6 {[%clk 0:00:20.1]}
58... Kd7 {[%clk 0:00:06.2]} 59. Kxg4 {[%clk 0:00:19.6]} 59... Re6 {[%clk
0:00:05.5]} 60. Rxe6 {[%clk 0:00:18.9]} 60... Kxe6 {[%clk 0:00:06.4]} 61. Kg5
{[%clk 0:00:19.6]} 61... Kxd6 {[%clk 0:00:07.3]} 62. Kxg6 {[%clk 0:00:20.2]}
62... Ke7 {[%clk 0:00:08.2]} 63. Kg7 {[%clk 0:00:20.9]} 1-0

[Event "Early-Titled-Tuesday-Blitz-October-17-2023"]
[Site "Chess.com"]
[Date "2023.10.17"]
[Round "11"]
[White "AnaKuchava"]
[Black "NM_Antelacus"]
[Result "1-0"]
[WhiteElo "2247"]
[BlackElo "2093"]
[TimeControl "180+1"]
[EndTime "10:10:20 PDT"]
[Termination "AnaKuchava won on time"]

1. d4 {[%clk 0:03:00.9]} 1... Nf6 {[%clk 0:02:59.4]} 2. Nf3 {[%clk 0:02:57.4]}
2... e6 {[%clk 0:02:58.8]} 3. c4 {[%clk 0:02:57.3]} 3... b6 {[%clk 0:02:57.1]}
4. a3 {[%clk 0:02:55.1]} 4... Bb7 {[%clk 0:02:57.1]} 5. Nc3 {[%clk 0:02:53.8]}
5... Be7 {[%clk 0:02:57.3]} 6. d5 {[%clk 0:02:52.1]} 6... exd5 {[%clk
0:02:54.9]} 7. cxd5 {[%clk 0:02:53]} 7... O-O {[%clk 0:02:50.2]} 8. e4 {[%clk
0:02:52.6]} 8... Re8 {[%clk 0:02:48.5]} 9. Bd3 {[%clk 0:02:50.8]} 9... d6 {[%clk
0:02:47.3]} 10. O-O {[%clk 0:02:50.1]} 10... Nbd7 {[%clk 0:02:47.5]} 11. Bf4
{[%clk 0:02:48]} 11... Nh5 {[%clk 0:02:42.4]} 12. Be3 {[%clk 0:02:43.5]} 12...
g6 {[%clk 0:02:33.5]} 13. Rc1 {[%clk 0:02:41.2]} 13... a6 {[%clk 0:02:31.6]} 14.
Nd4 {[%clk 0:02:28.4]} 14... Ne5 {[%clk 0:02:22.8]} 15. Be2 {[%clk 0:01:46.6]}
15... Ng7 {[%clk 0:02:21.8]} 16. f4 {[%clk 0:01:45.4]} 16... Nd7 {[%clk
0:02:20.9]} 17. Nc6 {[%clk 0:01:42.2]} 17... Bxc6 {[%clk 0:02:20.1]} 18. dxc6
{[%clk 0:01:43.1]} 18... Nc5 {[%clk 0:02:07.2]} 19. b4 {[%clk 0:01:37.1]} 19...
Nce6 {[%clk 0:02:06.4]} 20. Nd5 {[%clk 0:01:33.8]} 20... f5 {[%clk 0:02:02.1]}
21. Bd3 {[%clk 0:01:20.6]} 21... a5 {[%clk 0:01:19.6]} 22. exf5 {[%clk
0:01:08.2]} 22... gxf5 {[%clk 0:01:19]} 23. Qc2 {[%clk 0:00:51]} 23... Rf8
{[%clk 0:01:18]} 24. Rfe1 {[%clk 0:00:42.5]} 24... axb4 {[%clk 0:01:08.4]} 25.
axb4 {[%clk 0:00:42.2]} 25... Ra3 {[%clk 0:00:57.7]} 26. Ra1 {[%clk 0:00:26.5]}
26... Rxa1 {[%clk 0:00:55.6]} 27. Rxa1 {[%clk 0:00:27.4]} 27... Qe8 {[%clk
0:00:43]} 28. Ra7 {[%clk 0:00:20.6]} 28... Bd8 {[%clk 0:00:41.9]} 29. Qd2 {[%clk
0:00:15.3]} 29... Qh5 {[%clk 0:00:37]} 30. g3 {[%clk 0:00:14.4]} 30... Qg4
{[%clk 0:00:36.3]} 31. Kg2 {[%clk 0:00:14.4]} 31... h5 {[%clk 0:00:35]} 32. h3
{[%clk 0:00:13.1]} 32... Qg6 {[%clk 0:00:34.7]} 33. Kf3 {[%clk 0:00:12.6]} 33...
Rf7 {[%clk 0:00:27.6]} 34. Ra8 {[%clk 0:00:11.8]} 34... Kh7 {[%clk 0:00:27.6]}
35. Qc2 {[%clk 0:00:09.5]} 35... Bf6 {[%clk 0:00:20.6]} 36. b5 {[%clk
0:00:07.9]} 36... Be7 {[%clk 0:00:17.7]} 37. Nxe7 {[%clk 0:00:05.9]} 37... Rxe7
{[%clk 0:00:17.6]} 38. Rf8 {[%clk 0:00:03.2]} 38... Rf7 {[%clk 0:00:14.1]} 39.
Rxf7 {[%clk 0:00:03.1]} 39... Qxf7 {[%clk 0:00:13.7]} 40. Bc4 {[%clk 0:00:03.4]}
40... Qf6 {[%clk 0:00:09.1]} 41. Qb3 {[%clk 0:00:02.2]} 41... Kh6 {[%clk
0:00:08.4]} 42. Bxe6 {[%clk 0:00:01.2]} 42... Qxe6 {[%clk 0:00:07.8]} 43. Qxe6+
{[%clk 0:00:01.3]} 43... Nxe6 {[%clk 0:00:07.9]} 44. g4 {[%clk 0:00:01.4]} 44...
hxg4+ {[%clk 0:00:06.4]} 45. hxg4 {[%clk 0:00:02.3]} 45... fxg4+ {[%clk
0:00:06]} 46. Kxg4 {[%clk 0:00:03.2]} 46... Kg7 {[%clk 0:00:03.9]} 47. Kf5
{[%clk 0:00:03.1]} 47... Kf7 {[%clk 0:00:03.9]} 48. Ke4 {[%clk 0:00:03]} 48...
Ng7 {[%clk 0:00:03.1]} 49. Bxb6 {[%clk 0:00:02.6]} 1-0

[Event "Early-Titled-Tuesday-Blitz-October-17-2023"]
[Site "Chess.com"]
[Date "2023.10.17"]
[Round "11"]
[White "bazar-wokzal"]
[Black "Zurability"]
[Result "0-1"]
[WhiteElo "2588"]
[BlackElo "2737"]
[TimeControl "180+1"]
[EndTime "10:10:21 PDT"]
[Termination "Zurability won on time"]

1. e4 {[%clk 0:03:00.9]} 1... c5 {[%clk 0:03:00]} 2. c3 {[%clk 0:03:00.3]} 2...
d5 {[%clk 0:03:00.1]} 3. exd5 {[%clk 0:03:00.1]} 3... Qxd5 {[%clk 0:03:01]} 4.
d4 {[%clk 0:03:00.5]} 4... Nc6 {[%clk 0:03:01.3]} 5. Nf3 {[%clk 0:03:00.7]} 5...
Bg4 {[%clk 0:03:01.7]} 6. Be2 {[%clk 0:02:58.9]} 6... O-O-O {[%clk 0:03:01]} 7.
dxc5 {[%clk 0:02:41.2]} 7... Qxd1+ {[%clk 0:02:52.5]} 8. Bxd1 {[%clk 0:02:40.9]}
8... e5 {[%clk 0:02:53.4]} 9. Be3 {[%clk 0:02:39.9]} 9... f5 {[%clk 0:02:46.6]}
10. b4 {[%clk 0:02:38.4]} 10... f4 {[%clk 0:02:42.3]} 11. Bd2 {[%clk 0:02:35.1]}
11... e4 {[%clk 0:02:24]} 12. h3 {[%clk 0:02:20.2]} 12... Bh5 {[%clk 0:02:21.8]}
13. Ng5 {[%clk 0:02:11.2]} 13... Bxd1 {[%clk 0:02:11.1]} 14. Kxd1 {[%clk
0:02:11.4]} 14... e3 {[%clk 0:02:09.2]} 15. Nf7 {[%clk 0:02:08.6]} 15... exd2
{[%clk 0:02:06.8]} 16. Nxh8 {[%clk 0:02:07.7]} 16... Nh6 {[%clk 0:02:06.1]} 17.
Nxd2 {[%clk 0:02:02.2]} 17... Be7 {[%clk 0:02:04.6]} 18. Kc2 {[%clk 0:02:02.3]}
18... Rxh8 {[%clk 0:02:04.6]} 19. Nc4 {[%clk 0:01:59.8]} 19... Nf5 {[%clk
0:02:01.6]} 20. Rhe1 {[%clk 0:01:52.6]} 20... Bf6 {[%clk 0:01:56.5]} 21. Re4
{[%clk 0:01:50.3]} 21... Nxb4+ {[%clk 0:01:53.1]} 22. cxb4 {[%clk 0:01:44.2]}
22... Bxa1 {[%clk 0:01:52.6]} 23. Rxf4 {[%clk 0:01:44.6]} 23... g6 {[%clk
0:01:48.1]} 24. g4 {[%clk 0:01:41.8]} 24... Ne7 {[%clk 0:01:36.4]} 25. Nd6+
{[%clk 0:01:35.7]} 25... Kd7 {[%clk 0:01:30.9]} 26. Nxb7 {[%clk 0:01:33.7]}
26... Rb8 {[%clk 0:01:22.7]} 27. Nd6 {[%clk 0:01:12.1]} 27... Be5 {[%clk
0:01:21.7]} 28. Rf7 {[%clk 0:01:09.1]} 28... Bxd6 {[%clk 0:01:21.1]} 29. cxd6
{[%clk 0:01:08.9]} 29... Kxd6 {[%clk 0:01:22]} 30. a3 {[%clk 0:01:01.4]} 30...
h5 {[%clk 0:01:21.8]} 31. f4 {[%clk 0:00:56.3]} 31... Rb5 {[%clk 0:01:13.3]} 32.
Kb3 {[%clk 0:00:48.8]} 32... Ke6 {[%clk 0:01:06.6]} 33. Rh7 {[%clk 0:00:48]}
33... hxg4 {[%clk 0:01:05]} 34. hxg4 {[%clk 0:00:47.9]} 34... Rd5 {[%clk
0:01:05.1]} 35. Kc4 {[%clk 0:00:41.2]} 35... Rd7 {[%clk 0:00:55.4]} 36. Kb5
{[%clk 0:00:28.9]} 36... Kf6 {[%clk 0:00:38.7]} 37. Ka6 {[%clk 0:00:24.4]} 37...
Rd4 {[%clk 0:00:38.2]} 38. f5 {[%clk 0:00:22.6]} 38... g5 {[%clk 0:00:35.6]} 39.
Rh6+ {[%clk 0:00:20.3]} 39... Kf7 {[%clk 0:00:28.4]} 40. Rh7+ {[%clk 0:00:19.5]}
40... Kf6 {[%clk 0:00:25.2]} 41. Rh6+ {[%clk 0:00:19.9]} 41... Kg7 {[%clk
0:00:25.8]} 42. Re6 {[%clk 0:00:15.6]} 42... Kf7 {[%clk 0:00:25.2]} 43. Kxa7
{[%clk 0:00:10.2]} 43... Rxg4 {[%clk 0:00:25.7]} 44. b5 {[%clk 0:00:10.1]} 44...
Nxf5 {[%clk 0:00:25.9]} 45. Re5 {[%clk 0:00:07]} 45... Kf6 {[%clk 0:00:25]} 46.
Rc5 {[%clk 0:00:06.1]} 46... Ra4+ {[%clk 0:00:23.4]} 47. Kb8 {[%clk 0:00:05.6]}
47... g4 {[%clk 0:00:18.4]} 48. b6 {[%clk 0:00:05.7]} 48... g3 {[%clk
0:00:18.5]} 49. b7 {[%clk 0:00:05.5]} 49... g2 {[%clk 0:00:10.7]} 50. Kc8 {[%clk
0:00:04.2]} 50... g1=Q {[%clk 0:00:09.8]} 51. Rc6+ {[%clk 0:00:02.6]} 51... Kf7
{[%clk 0:00:08.9]} 52. b8=Q {[%clk 0:00:03]} 52... Ne7+ {[%clk 0:00:08.9]} 0-1